[Event "FIDE WTC Prel-A 2022"]
[Site "Jerusalem"]
[Date "2022.11.21"]
[Round "3.10"]
[White "Shevchenko, Kirill"]
[Black "Xu, Xiangyu"]
[Result "1/2-1/2"]
[ECO "B45"]
[WhiteElo "2649"]
[BlackElo "2577"]
[Annotator "TA"]
[PlyCount "74"]
[EventDate "2022.11.20"]
[EventType "team-tourn"]
[EventCountry "ISR"]
[SourceTitle "playchess.com"]
[Source "ChessBase"]
[SourceQuality "1"]
[WhiteTeam "Ukraine"]
[BlackTeam "China"]
[WhiteTeamCountry "UKR"]
[BlackTeamCountry "CHN"]
[TimeControl "2700+10"]

{[%evp 23,74,29,28,13,15,0,7,11,10,11,12,5,8,5,10,7,7,8,17,0,0,-28,-28,-28,12,0,0,0,0,0,0,0,0,0,0,0,0,0,0,0,0,0,0,0,0,0,0,0,0,0,0,0,0]} 1. e4 {[%emt 0:00:03]} c5 {[%emt 0:00:02]} 2. Nf3 {[%emt 0:00:01][%cal Bg1f3,Bf3d4,Bd4b5][%mdl 32]} Nc6 {[%emt 0:00:02]} 3. Nc3 {[%emt 0:00:25]} e6 {[%emt 0:00:07]} 4. d4 {[%emt 0:00:34]} cxd4 {[%emt 0:00:02]} 5. Nxd4 {[%emt 0:00:02]} Nf6 {[%emt 0:00:02]} 6. Ndb5 {[%emt 0:00:43]} Bb4 {[%emt 0:00:04]} 7. a3 {[%emt 0:00:11]} Bxc3+ {[%emt 0:00:03]} 8. Nxc3 {[%emt 0:00:01]} d5 {[%emt 0:00:02]} 9. Bd3 {[%emt 0:00:01]} dxe4 {[%emt 0:00:03]} 10. Nxe4 {[%emt 0:00:04]} Nxe4 {[%emt 0:00:02]} 11. Bxe4 {[%emt 0:00:01]} Qxd1+ {[%emt 0:00:03]} 12. Kxd1 {[%emt 0:00:01]} Bd7 {[%emt 0:00:02]} 13. b3 {[%emt 0:10:08] B45: Sicilian Four Knights.} O-O-O {[%emt 0:05:49][%cal Ba8d8,Bd8d4,Bd4d5][%mdl 32]} 14. Bb2 {[%emt 0:00:18] [#]} Nd4 $146 {[%emt 0:00:22]} ({Predecessor:} 14... f5 15. Bf3 Be8+ 16. Kc1 Nd4 17. Bd1 Bc6 18. c3 Nb5 19. a4 Nd6 20. f3 f4 {1-0 (35) Maurizzi,M (2489)-Krastev,A (2402) Corte 2022}) 15. Bxd4 {[%emt 0:04:36] A strong pair of Bishops.} Bc6 {[%emt 0:00:02]} 16. Bxc6 {[%emt 0:00:02]} Rxd4+ {[%emt 0:00:05]} 17. Ke2 {[%emt 0:00:01]} bxc6 $11 {[%emt 0:00:03][%mdl 4096] Endgame KRR-KRR} 18. Rhd1 {[%emt 0:00:10]} Rd5 {[%emt 0:01:59]} 19. Rd3 {[%emt 0:03:40]} Rhd8 {[%emt 0:03:56]} 20. Rad1 {[%emt 0:00:02]} Kc7 {[%emt 0:00:08]} 21. f4 {[%emt 0:04:39]} a5 {[%emt 0:02:03]} 22. c4 {[%emt 0:02:28]} Rxd3 {[%emt 0:00:04]} 23. Rxd3 {[%emt 0:00:01] KR-KR} Rb8 {[%emt 0:00:05]} 24. Kd2 {[%emt 0:00:13] The position is equal.} c5 {[%emt 0:02:29][%cal Oa5a4]} 25. Kc3 {[%emt 0:00:03]} Kc6 {[%emt 0:00:27]} 26. Rd2 {[%emt 0:03:01]} h5 {[%emt 0:00:37]} 27. g3 {[%emt 0:00:52]} g6 {[%emt 0:01:12]} 28. Rd1 {[%emt 0:00:31]} Ra8 {[%emt 0:00:42]} 29. Rd2 {[%emt 0:00:29]} Re8 {[%emt 0:01:38]} 30. b4 {[%emt 0:00:44]} axb4+ {[%emt 0:00:14]} 31. axb4 {[%emt 0:00:01]} cxb4+ {[%emt 0:00:03]} 32. Kxb4 {[%emt 0:00:01]} Rb8+ {[%emt 0:00:44]} 33. Kc3 {[%emt 0:00:01]} Ra8 {[%emt 0:00:02]} 34. Kd4 {[%emt 0:00:45]} Rd8+ {[%emt 0:01:51]} 35. Ke3 {[%emt 0:00:02]} (35. Kc3 $5 {[%cal Rd2d8]} Ra8 36. Kd4 $11) 35... Ra8 {[%emt 0:00:02]} 36. Kd4 $1 {[%emt 0:16:15]} Rd8+ {[%emt 0:00:35]} 37. Ke3 {[%emt 0:00:00]} Ra8 {[%emt 0:00:10] Not much happened in this game.  Weighted Error Value: White=0.05 (flawless) /Black=0.03 (flawless)} 1/2-1/2

[Event "FIDE WTC Prel-A 2022"]
[Site "Jerusalem"]
[Date "2022.11.21"]
[Round "3.11"]
[White "Bai, Jinshi"]
[Black "Volokitin, Andrei"]
[Result "1-0"]
[ECO "D02"]
[WhiteElo "2569"]
[BlackElo "2663"]
[Annotator "TA"]
[PlyCount "119"]
[EventDate "2022.11.20"]
[EventType "team-tourn"]
[EventCountry "ISR"]
[SourceTitle "playchess.com"]
[Source "ChessBase"]
[SourceQuality "1"]
[WhiteTeam "China"]
[BlackTeam "Ukraine"]
[WhiteTeamCountry "CHN"]
[BlackTeamCountry "UKR"]
[TimeControl "2700+10"]

{[%evp 9,119,15,6,0,19,32,33,27,24,26,16,-22,-16,-16,8,-42,-44,-56,-55,-52,-58,-54,-39,-38,0,-51,0,-32,-37,-62,-41,-51,-48,-65,-51,-73,-67,-67,-67,-69,-67,-80,-66,-63,-66,-66,-75,-67,-59,-59,-53,-54,-35,-37,-37,-63,-46,-242,-241,-241,-240,-178,-209,-405,-398,-398,-391,-391,-391,-391,-391,-376,-357,-339,-332,-332,-325,-507,-549,-613,-605,-810,-754,-29957,-29960,-29959,-1345,-29959,-29963,-29961,-1048,-29962,-29956,-29949,-12846,-6107,-78,-78,-78,-78,0,0,0,0,29979,29980,29983,29984,29984,29985,29984,29985]} 1. d4 {[%emt 0:00:05]} Nf6 {[%emt 0:00:04]} 2. Nf3 {[%emt 0:00:02]} d5 {[%emt 0:01:05]} 3. g3 {[%emt 0:00:08]} Bf5 {[%emt 0:00:14]} 4. c4 {[%emt 0:00:05]} e6 {[%emt 0:00:25]} 5. Nc3 {[%emt 0:00:06]} h6 {[%emt 0:01:19]} 6. Bf4 {[%emt 0:00:17] D02: 1 d4 d5 2 Nf3 sidelines, including 2...Nf6 3 g3 and 2...Nf6 3 Bf4.} c6 {[%emt 0:12:09]} 7. Qb3 {[%emt 0:00:11]} Qb6 {[%emt 0:00:07]} 8. c5 {[%emt 0:00:03] White is slightly better.} Qxb3 {[%emt 0:00:08]} 9. axb3 {[%emt 0:00:02] [#]} Nbd7 $146 {[%emt 0:00:36]} ({Predecessor:} 9... Be7 10. Bxb8 Rxb8 11. Rxa7 O-O 12. b4 Ra8 13. Ra3 Rxa3 14. bxa3 Ra8 15. a4 Ne4 16. Nxe4 dxe4 {0-1 (50) Rios Escobar,A (2276)-Bjelobrk,I (2405) Chess.com INT 2022}) 10. b4 {[%emt 0:00:04]} g5 {[%emt 0:00:15]} 11. Be3 {[%emt 0:06:48]} Ne4 {[%emt 0:05:08]} 12. Nxe4 {[%emt 0:07:40]} (12. h3 $11) 12... Bxe4 $15 {[%emt 0:00:10]} 13. Rg1 {[%emt 0:00:01]} Bg7 {[%emt 0:01:34]} 14. Nd2 {[%emt 0:00:04]} Bc2 {[%emt 0:00:11]} 15. Rc1 {[%emt 0:05:42]} Ba4 {[%emt 0:02:38]} 16. Ra1 {[%emt 0:00:13]} Bc2 {[%emt 0:00:10]} 17. Rc1 {[%emt 0:00:11]} Ba4 {[%emt 0:00:02]} 18. Ra1 {[%emt 0:00:08]} Bb5 {[%emt 0:02:29]} 19. f4 {[%emt 0:03:05]} Nf6 {[%emt 0:04:37]} 20. h3 {[%emt 0:01:14] Inhibits Ng4.} g4 {[%emt 0:00:33]} 21. h4 {[%emt 0:02:10]} Ke7 {[%emt 0:02:54]} 22. Bf2 {[%emt 0:00:18]} b6 {[%emt 0:01:18]} 23. e3 {[%emt 0:01:48]} Bxf1 {[%emt 0:00:23]} 24. Rxf1 {[%emt 0:00:45]} Rhb8 {[%emt 0:00:07]} 25. Ke2 {[%emt 0:08:19]} bxc5 {[%emt 0:00:07]} 26. bxc5 {[%emt 0:00:01]} Rxb2 {[%emt 0:00:05]} 27. Rfb1 {[%emt 0:00:06]} Rxb1 {[%emt 0:01:03]} 28. Nxb1 {[%emt 0:00:54]} Ne4 {[%emt 0:01:16] Hoping for ...Nxc5.} 29. Be1 {[%emt 0:00:04]} Kd7 {[%emt 0:03:29]} 30. Nc3 {[%emt 0:00:37]} Nxc3+ {[%emt 0:02:06]} 31. Bxc3 {[%emt 0:00:01][%mdl 4096] Endgame KRB-KRB} Bf6 {[%emt 0:00:17]} 32. h5 {[%emt 0:03:15]} Bd8 {[%emt 0:00:19]} 33. Ba5 $2 {[%emt 0:01:52]} (33. Ra6 $15) 33... Bxa5 $19 {[%emt 0:01:36]} 34. Rxa5 {[%emt 0:00:01] KR-KR} a6 {[%emt 0:00:03][%cal Ba7a6,Ba6a5][%mdl 32]} 35. Kd3 {[%emt 0:00:18] [#]} Ke7 $1 {[%emt 0:00:06]} 36. Ra1 $2 {[%emt 0:02:01]} (36. e4) 36... a5 {[%emt 0:00:16]} 37. Ra4 {[%emt 0:01:15]} Kf6 {[%emt 0:00:37]} 38. e4 {[%emt 0:00:02]} dxe4+ {[%emt 0:00:07]} 39. Kxe4 {[%emt 0:00:01]} Ra7 {[%emt 0:00:03]} 40. Kd3 {[%emt 0:00:11]} Kf5 {[%emt 0:00:04]} 41. Ke3 {[%emt 0:00:01]} Ra8 {[%emt 0:00:36]} 42. Kd3 {[%emt 0:00:05]} Rb8 {[%emt 0:00:09] White must now prevent ...Rb3+.} 43. Rxa5 {[%emt 0:00:21]} (43. Ke2 $142 Rb2+ 44. Kf1) 43... Rb3+ {[%emt 0:00:01]} 44. Ke2 {[%emt 0:00:11]} Rxg3 {[%emt 0:00:02]} 45. Ra6 {[%emt 0:00:39]} Kxf4 {[%emt 0:01:12] And now ...Re3+ would win.} 46. Rxc6 {[%emt 0:00:01]} Re3+ {[%emt 0:00:18]} 47. Kd2 {[%emt 0:00:44]} g3 {[%emt 0:00:07]} 48. Rc7 {[%emt 0:00:01]} f5 {[%emt 0:00:10]} 49. Rg7 {[%emt 0:00:02]} Re4 {[%emt 0:00:10]} (49... Ra3 $142 50. d5 exd5 51. Ke2 Rc3 52. Rb7 Rc1 53. Rg7 Rxc5 54. Rb7 Rc1 55. Rg7 Rh1 56. Rg6 Rh2+ 57. Kd3 Rxh5 58. Kd4 Rg5 59. Rd6 g2 60. Kc5 g1=Q+ 61. Kxd5 Rg7 62. Rxh6 Qd1+ 63. Kc5 Ke5 64. Kb6 Qd4+ 65. Ka6 Ra7+ 66. Kb5 Rb7+ 67. Rb6 Rxb6+ 68. Ka5 Qb4#) 50. Kd3 {[%emt 0:00:07]} Re1 {[%emt 0:00:21]} 51. Kd2 {[%emt 0:01:02] [#]} Ra1 $1 {[%emt 0:00:06][%cal Og3g2]} 52. c6 {[%emt 0:00:06]} Ra6 $2 {[%emt 0:00:04]} (52... Kf3 $19 {is more deadly. Threatens to win with ...Ra6.} 53. Rg8 Ra7) 53. c7 $17 {[%emt 0:00:14]} Rc6 {[%emt 0:00:01] ( -> ...Kf3)} 54. Ke2 {[%emt 0:00:00]} Rc2+ {[%emt 0:00:20]} ({Better is} 54... Ke4 $17 {Strongly threatening ...Kf4.} 55. Rxg3 Rc2+ 56. Ke1 Kxd4) 55. Kd3 $11 {[%emt 0:00:03]} Rc1 {[%emt 0:00:19] aiming for ...Kf3.} 56. Kd2 $1 {[%emt 0:00:01]} Rxc7 {[%emt 0:00:12][%mdl 8192]} 57. Rxc7 {[%emt 0:00:01] White mates.} g2 {[%emt 0:00:04]} 58. Rg7 {[%emt 0:00:02]} Kf3 {[%emt 0:00:02]} 59. Ke1 {[%emt 0:00:04]} f4 {[%emt 0:00:13]} 60. Rg6 {[%emt 0:00:04][%csl LRe6,LRh6] Weighted Error Value: White=0.64/Black=0.37} 1-0

[Event "FIDE WTC Prel-A 2022"]
[Site "Jerusalem"]
[Date "2022.11.21"]
[Round "3.12"]
[White "Kovalenko, Igor"]
[Black "Li, Di"]
[Result "0-1"]
[ECO "D63"]
[WhiteElo "2674"]
[BlackElo "2539"]
[Annotator "TA"]
[PlyCount "154"]
[EventDate "2022.11.20"]
[EventType "team-tourn"]
[EventCountry "ISR"]
[SourceTitle "playchess.com"]
[Source "ChessBase"]
[SourceQuality "1"]
[WhiteTeam "Ukraine"]
[BlackTeam "China"]
[WhiteTeamCountry "UKR"]
[BlackTeamCountry "CHN"]
[TimeControl "2700+10"]

{[%evp 14,154,19,10,14,11,22,22,25,39,34,34,28,33,41,16,10,0,26,18,25,21,41,-16,-14,-8,7,0,0,0,0,-8,-6,-24,-11,-23,0,0,0,0,0,0,0,0,0,0,0,0,0,0,0,0,0,0,0,0,0,0,0,0,0,-40,-48,-43,-34,-41,-33,-33,0,-110,-130,-138,-139,-154,-9,-61,-107,-206,-194,-622,-580,-1027,-945,-1062,-991,-2931,-5264,-2032,-3848,-2376,-3992,-2378,-2769,-2399,-1965,-1614,-1575,-12837,-12836,-12850,-27999,-27999,-27999,-27999,-27999,-27999,-27999,-27999,-27999,-27999,-27999,-27999,-27999,-27999,-27999,-27999,-27999,-27999,-27999,-27999,-27999,-27999,-27999,-27999,-27999,-27999,-27999,-27999,-27999,-27999,-27999,-27999,-27999,-27999,-27999,-27999,-27997,-27998,-27998,-27992,-27992,-27993,-27993]} 1. c4 {[%emt 0:00:02]} e6 {[%emt 0:00:01]} 2. Nc3 {[%emt 0:00:06]} d5 {[%emt 0:00:02]} 3. d4 {[%emt 0:00:01]} Nf6 {[%emt 0:00:01]} 4. Bg5 {[%emt 0:00:04]} Be7 {[%emt 0:00:08]} 5. e3 {[%emt 0:00:01]} Nbd7 {[%emt 0:00:15]} 6. Nf3 {[%emt 0:00:02]} h6 {[%emt 0:00:02]} 7. Bh4 {[%emt 0:00:02][%cal Bg5h4,Bh4g3,Bg3e5,Be5c3][%mdl 32]} O-O {[%emt 0:00:02]} 8. Rc1 {[%emt 0:00:41]} c5 {[%emt 0:02:38] D63: Queen's Gambit Declined: Classical: 7 Rc1.} 9. dxc5 {[%emt 0:00:02]} Nxc5 {[%emt 0:00:29] is now debated instead of 9...dxc4.} 10. cxd5 {[%emt 0:00:02]} g5 {[%emt 0:00:08] The position is equal.} 11. Bg3 {[%emt 0:00:02] Threatens to win with d6.} Nxd5 {[%emt 0:00:01]} 12. Nxd5 {[%emt 0:00:01]} Qxd5 {[%emt 0:00:01]} 13. Qxd5 {[%emt 0:00:03]} exd5 {[%emt 0:00:02]} 14. Be5 {[%emt 0:01:54]} Bf5 {[%emt 0:00:10] [#]} 15. Rd1 $146 {[%emt 0:01:53]} (15. Nd4 {is more complex.} Be4 16. f3 Rfc8 17. Kf2) ({Predecessor:} 15. Be2 Rac8 16. O-O Bd3 17. Bxd3 Nxd3 18. Rcd1 Nxe5 19. Nxe5 Rc2 20. Rxd5 Rxb2 21. Rd7 {½-½ (42) So,W (2812)-Kramnik,V (2808) Leuven 2017}) 15... f6 {[%emt 0:00:12]} 16. Bc3 {[%emt 0:03:51]} Rfd8 {[%emt 0:07:06]} 17. Nd4 {[%emt 0:00:42]} Bd7 {[%emt 0:00:37]} 18. Bd3 {[%emt 0:06:25]} (18. Bb4 $14) 18... Nxd3+ $11 {[%emt 0:01:40]} 19. Rxd3 {[%emt 0:00:02]} Rac8 {[%emt 0:00:13]} 20. O-O {[%emt 0:01:36]} Kf7 {[%emt 0:00:22]} 21. Rfd1 {[%emt 0:00:16]} h5 {[%emt 0:00:33]} 22. a3 {[%emt 0:00:32]} b6 {[%emt 0:03:17]} 23. f3 {[%emt 0:01:06]} h4 {[%emt 0:00:13]} 24. Kf2 {[%emt 0:01:02][%cal Bg1f2,Bf2e1,Be1d2][%mdl 32]} a5 {[%emt 0:00:06]} 25. Ne2 {[%emt 0:00:26]} Be6 {[%emt 0:00:58]} 26. Bd4 {[%emt 0:00:16]} Rd6 {[%emt 0:02:09]} 27. Rb3 {[%emt 0:01:03]} Rc2 {[%emt 0:00:27]} 28. Ke1 {[%emt 0:03:12]} Bd7 {[%emt 0:06:12]} 29. Rd2 {[%emt 0:00:11]} Rxd2 {[%emt 0:00:04]} 30. Kxd2 {[%emt 0:00:01]} Bd8 {[%emt 0:00:12]} 31. Nc3 {[%emt 0:00:54]} Ke6 {[%emt 0:02:04]} 32. Nb5 {[%emt 0:03:28]} Rc6 {[%emt 0:01:26]} 33. Nc3 $1 {[%emt 0:00:41]} Rc4 {[%emt 0:00:46][%cal Ob6b5]} 34. a4 {[%emt 0:03:48] Inhibits b5.} ({Much worse is} 34. Bxb6 a4 35. Bxd8 axb3 $17) 34... Bxa4 {[%emt 0:00:02]} 35. Nxa4 {[%emt 0:00:02]} Rxa4 {[%emt 0:00:02]} 36. Bxb6 {[%emt 0:00:01][%mdl 4096] Endgame KRB-KRB} Be7 {[%emt 0:00:29]} 37. Bd4 {[%emt 0:03:56]} Bb4+ {[%emt 0:00:50]} 38. Ke2 {[%emt 0:00:02]} Ra1 {[%emt 0:00:19]} 39. Bc3 {[%emt 0:01:01] Prevents Re1+.} Bxc3 {[%emt 0:00:34]} 40. Rxc3 $15 {[%emt 0:00:02] KR-KR} h3 {[%emt 0:00:27]} 41. Kf2 {[%emt 0:00:12]} (41. gxh3 $11 {was the only way to keep the balance.} Rh1 42. Kd3 (42. Rc6+ Ke5 $15)) 41... Ra2 $1 $17 {[%emt 0:02:40]} 42. gxh3 {[%emt 0:05:55]} Rxb2+ {[%emt 0:00:03]} 43. Kg3 {[%emt 0:00:01] [#]} a4 {[%emt 0:01:59] Black is much more active.} (43... Rb4 $1 $17 {Strongly threatening ...a4.} 44. Rc8 a4) 44. Rc6+ {[%emt 0:00:06]} ({White should try} 44. h4 $11) 44... Ke5 $15 {[%emt 0:00:25] Black converts the advantage convincingly.} 45. Ra6 {[%emt 0:00:22] [#]} (45. h4 $17 {was the only defense.}) 45... Rb4 $1 $19 {[%emt 0:00:25] aiming for ...f5.} 46. Kf2 $2 {[%emt 0:01:47]} (46. f4+ gxf4+ 47. exf4+ Kf5 48. h4) 46... f5 {[%emt 0:00:27] ...f4 is the strong threat.} 47. Ra8 {[%emt 0:02:14]} f4 {[%emt 0:00:29]} 48. exf4+ {[%emt 0:01:04]} Kxf4 {[%emt 0:00:17]} 49. Ke2 {[%emt 0:00:51]} Rb2+ {[%emt 0:02:42]} 50. Kd3 {[%emt 0:00:01]} Rxh2 {[%emt 0:00:03]} 51. Rf8+ {[%emt 0:00:08]} Ke5 {[%emt 0:00:46] Hoping for ...a3.} 52. Rg8 {[%emt 0:00:01]} Kf6 {[%emt 0:01:04]} 53. Rf8+ {[%emt 0:00:04]} Ke6 {[%emt 0:00:24]} 54. Re8+ {[%emt 0:01:08]} Kd6 {[%emt 0:00:33]} 55. Rg8 {[%emt 0:00:28]} Rxh3 {[%emt 0:00:20]} 56. Rxg5 {[%emt 0:00:02]} Rxf3+ {[%emt 0:00:04]} 57. Kd4 {[%emt 0:00:07] Black mates.} Rf4+ {[%emt 0:00:04]} 58. Kc3 {[%emt 0:00:04]} Kc5 {[%emt 0:00:01]} 59. Rg8 {[%emt 0:00:01]} Rf3+ {[%emt 0:00:09]} 60. Kc2 {[%emt 0:00:06]} a3 {[%emt 0:00:11]} 61. Rc8+ {[%emt 0:00:04]} Kd4 {[%emt 0:00:09]} 62. Ra8 {[%emt 0:00:11]} Rf2+ {[%emt 0:00:56]} 63. Kb1 {[%emt 0:00:05]} Rb2+ {[%emt 0:00:44]} 64. Ka1 {[%emt 0:00:02]} Rb3 {[%emt 0:00:03]} 65. Ka2 {[%emt 0:00:01]} Rc3 {[%emt 0:00:15]} 66. Rh8 {[%emt 0:00:01]} Kc4 {[%emt 0:00:18]} 67. Rc8+ {[%emt 0:00:13]} Kd3 {[%emt 0:00:04]} 68. Rh8 {[%emt 0:00:07]} d4 {[%emt 0:00:07][%cal Bd5d4,Bd4d3,Bd3d2][%mdl 32]} 69. Rh3+ {[%emt 0:00:37]} Kc4 {[%emt 0:00:05]} 70. Rh4 {[%emt 0:00:03]} Rg3 {[%emt 0:00:42]} 71. Rh8 {[%emt 0:00:34]} d3 {[%emt 0:00:31]} 72. Rc8+ {[%emt 0:00:22]} Kb4 {[%emt 0:00:52]} 73. Rb8+ {[%emt 0:00:02]} Kc3 {[%emt 0:00:02]} 74. Rc8+ {[%emt 0:00:01]} Kd2 {[%emt 0:00:11]} 75. Kxa3 {[%emt 0:00:02]} Kd1 {[%emt 0:00:10]} 76. Kb2 {[%emt 0:00:16]} d2 {[%emt 0:01:01]} 77. Re8 {[%emt 0:00:13]} Rg5 {[%emt 0:00:08] Weighted Error Value: White=0.47/Black=0.05 (flawless)} 0-1